bitfinex-derivatives/quotes_ETHF0:USTF0_20250314
["timestamp","ask_amount","ask_price","bid_price","bid_amount"]
[1741940991839,3.3896,1900.2,1900.1,1.9937798]
[1741940994035,2.45459,1900.3,1900.1,3.0464398]
[1741940994349,3.3876,1900.2,1900.1,1.9937798]
[1741940994538,4.8284,1900.2,1900.1,1.9937798]
[1741940996451,2.335,1900.2,1900.1,1.9937798]
[1741940996750,2.40638,1900.3,1900.1,3.0464398]
[1741940996947,4.74138,1900.3,1900.2,1.4071]
[1741940997642,3.6888,1900.3,1900.2,2.4597]
[1741940997836,4.74034,1900.3,1900.2,1.4071]
[1741940999544,3.6878,1900.3,1900.2,2.4597]
[1741940999747,3.38654,1900.3,1900.2,5.6675]
[1741940999947,4.69984,1900.3,1900.2,4.6149]
[1741941000158,4.69984,1900.3,1900.2,5.6675]
[1741941000343,1.0603698,1900.4,1900.3,1.05254]
[1741941000549,0.0078798,1900.4,1900.3,1.05254]
[1741941000749,0.0078798,1900.4,1900.3,2.35974]
[1741941000944,0.0078798,1900.4,1900.3,4.85974]
[1741941001350,0.0078798,1900.4,1900.3,8.29127001]
[1741941001549,1.05236,1900.7,1900.3,7.23873001]
[1741941001750,3.38336,1900.7,1900.5,4.26018]
[1741941001950,3.38336,1900.7,1900.6,1.4169]
[1741941003054,2.331,1900.7,1900.6,1.4169]
[1741941003348,3.38332,1900.7,1900.6,1.4169]
[1741941003553,2.331,1900.7,1900.6,2.46928]
[1741941004053,3.6847,1900.7,1900.6,2.46928]
[1741941004847,1e-08,1900.8,1900.7,1.05232]
[1741941005041,2.331,1901.2,1900.8,2.63068]
[1741941005247,2.331,1901.2,1901.0,3.2078]
[1741941005551,2.331,1901.2,1901.1,2.4025]
[1741941005750,2.331,1901.2,1901.1,3.1081]
[1741941006254,2.3388798,1901.3,1901.2,1.05205]
[1741941006453,2.3388798,1901.3,1901.2,2.40245]
[1741941007046,0.0078798,1901.3,1901.2,2.40245]
[1741941008040,1e-08,1901.3,1901.2,8.11025]
[1741941008247,1e-08,1901.3,1901.2,5.61025]
[1741941008851,1e-08,1901.3,1901.2,8.11025]
[1741941009952,1e-08,1901.3,1901.2,11.54178001]
[1741941012854,1e-08,1901.3,1901.2,13.87178001]
[1741941014150,1e-08,1901.3,1901.2,15.93778001]
[1741941014653,1e-08,1901.3,1901.2,16.35849386]
[1741941019863,1e-08,1901.3,1901.2,15.93778001]
[1741941020556,1e-08,1901.3,1901.2,15.93878001]
[1741941021255,1e-08,1901.3,1901.2,16.35004575]
[1741941023156,1e-08,1901.3,1901.2,11.10778001]
[1741941023761,1e-08,1901.3,1901.2,13.60778001]
[1741941023957,1e-08,1901.3,1901.2,11.10778001]
[1741941024267,1e-08,1901.3,1901.2,13.60778001]
[1741941025449,1e-08,1901.3,1901.2,11.10778001]
[1741941025653,1e-08,1901.3,1901.2,13.60778001]
[1741941025854,1e-08,1901.3,1901.2,11.54178001]
[1741941026056,1e-08,1901.3,1901.2,9.04178001]
[1741941026359,1e-08,1901.3,1901.2,11.54178001]
[1741941028366,1e-08,1901.3,1901.2,13.87878001]
[1741941032267,1e-08,1901.3,1901.2,14.56216184]
[1741941032863,0.7005,1901.7,1901.6,1.05183]
[1741941033065,0.7005,1901.7,1901.6,4.25963]
[1741941033568,0.7005,1901.7,1901.6,5.64773]
[1741941034859,0.6824798,1901.8,1901.7,1.05177]
[1741941036060,2.0877798,1901.8,1901.7,1.05177]
[1741941037971,2.8013798,1901.8,1901.7,1.05177]
[1741941042566,3.8530898,1901.8,1901.7,1.05177]
[1741941042762,2.8013798,1901.8,1901.7,1.05177]
[1741941043068,6.0091798,1901.8,1901.5,3.43153001]
[1741941043360,2.62974,1901.5,1901.1,0.0078798]
[1741941043567,1.05207,1901.2,1901.0,4.25993]
[1741941043764,1.9773,1901.1,1901.0,4.25993]
[1741941044163,1.3166,1901.1,1901.0,4.25993]
[1741941044866,1.3166,1901.1,1901.0,5.70293]
[1741941045568,1.3166,1901.1,1901.0,6.38032803]
[1741941045759,3.045,1901.4,1901.0,5.32819803]
[1741941045959,1.3166,1901.3,1901.2,4.25985]
[1741941046160,1.3166,1901.3,1901.2,9.13438001]
[1741941046360,2.33,1901.7,1901.2,9.44242804]
[1741941046569,0.0078798,1901.8,1901.7,1.05177]
[1741941047067,1.0595898,1901.8,1901.7,1.05177]
[1741941047270,0.0078798,1901.8,1901.7,1.05177]
[1741941047464,0.7244798,1901.8,1901.7,1.05177]
[1741941048260,0.0078798,1901.8,1901.7,2.38807]
[1741941048459,0.0078798,1901.8,1901.7,12.72260001]
[1741941048460,9.8e-06,1901.8,1901.7,12.72260001]
[1741941048657,9.8e-06,1901.8,1901.7,14.44137803]
[1741941048859,9.8e-06,1901.8,1901.7,12.6043226]
[1741941049058,9.8e-06,1901.8,1901.7,7.51864159]
[1741941049267,9.8e-06,1901.8,1901.7,7.16134458]
[1741941051971,9.8e-06,1901.8,1901.7,6.49840001]
[1741941054769,9.8e-06,1901.8,1901.7,7.1605856]
[1741941054969,9.8e-06,1901.8,1901.7,10.24608923]
[1741941055476,9.8e-06,1901.8,1901.7,10.24596634]
[1741941055667,9.8e-06,1901.8,1901.7,7.1605856]
[1741941056270,9.8e-06,1901.8,1901.7,9.6605856]
[1741941056470,9.8e-06,1901.8,1901.7,11.9915856]
[1741941057569,9.8e-06,1901.8,1901.7,12.57663912]
[1741941057768,9.8e-06,1901.8,1901.7,13.02566432]
[1741941058071,9.8e-06,1901.8,1901.7,14.64263912]
[1741941058272,9.8e-06,1901.8,1901.7,14.0575856]
[1741941058974,9.8e-06,1901.8,1901.7,14.64242276]
[1741941059178,9.8e-06,1901.8,1901.7,14.0575856]
[1741941062489,9.8e-06,1901.8,1901.7,14.0515856]
[1741941063290,9.8e-06,1901.8,1901.7,13.38940001]
[1741941064090,9.8e-06,1901.8,1901.7,14.42210859]
[1741941064286,9.8e-06,1901.8,1901.7,9.59710859]
[1741941064484,9.8e-06,1901.8,1901.7,11.54707505]
[1741941065293,9.8e-06,1901.8,1901.7,8.56440001]
[1741941066988,9.8e-06,1901.8,1901.7,11.06440001]
[1741941067194,9.8e-06,1901.8,1901.7,12.09693212]
[1741941067396,9.8e-06,1901.8,1901.7,12.75763055]
[1741941067589,9.8e-06,1901.8,1901.7,10.25763055]
[1741941067788,9.8e-06,1901.8,1901.7,12.75763055]
[1741941067991,9.8e-06,1901.8,1901.7,12.30926464]
[1741941068191,9.8e-06,1901.8,1901.7,12.75759337]
[1741941068493,9.8e-06,1901.8,1901.7,9.80921587]
[1741941068792,9.8e-06,1901.8,1901.7,11.55009844]
[1741941069789,9.8e-06,1901.8,1901.7,13.38940001]
[1741941070087,9.8e-06,1901.8,1901.7,11.47353183]
[1741941070895,9.8e-06,1901.8,1901.7,14.63418863]
[1741941071098,9.8e-06,1901.8,1901.7,14.05005681]
[1741941071301,9.8e-06,1901.8,1901.7,11.55005681]
[1741941071597,9.8e-06,1901.8,1901.7,14.05005681]
[1741941071794,9.8e-06,1901.8,1901.7,13.38940001]
[1741941072096,9.8e-06,1901.8,1901.7,13.97355918]
[1741941072798,9.8e-06,1901.8,1901.7,14.42192325]
[1741941073295,9.8e-06,1901.8,1901.7,14.42216725]
[1741941073595,9.8e-06,1901.8,1901.7,12.5831636]
[1741941073797,9.8e-06,1901.8,1901.7,10.2581636]
[1741941073989,9.8e-06,1901.8,1901.7,8.54659636]
[1741941074389,9.8e-06,1901.8,1901.7,7.88560001]
[1741941075198,0.6695,1902.5,1902.4,1.05138]
[1741941075397,0.6695,1902.5,1902.4,4.25918]
[1741941075897,0.6695,1902.5,1902.4,5.60318]
[1741941077404,0.0078798,1902.6,1902.5,1.05133]
[1741941077602,0.0078798,1902.6,1902.5,2.41033]
[1741941078107,0.0078798,1902.6,1902.5,1.05133]
[1741941078290,1.4431798,1902.6,1902.5,1.05133]
[1741941078694,1.4431798,1902.6,1902.4,3.2078]
[1741941078899,3.7761798,1902.6,1902.3,6.64720981]
[1741941079102,1.05138,1902.4,1902.3,0.0078798]
[1741941079297,2.48668,1902.5,1902.1,3.2078]
[1741941079496,1.4353,1902.3,1902.2,1.05149]
[1741941080805,1.4353,1902.3,1902.2,2.44229]
[1741941081196,2.3408798,1902.6,1902.2,5.87382001]
[1741941081509,1.3463,1902.5,1902.4,1.05138]
[1741941081697,1.3463,1902.5,1902.4,4.25918]
[1741941081893,1.3463,1902.5,1902.4,4.94838]
[1741941082202,0.0078798,1902.6,1902.5,1.05133]
[1741941082900,0.0078798,1902.6,1902.5,2.44213]
[1741941084499,0.0078798,1902.6,1902.5,5.87366001]
[1741941085196,3.2078,1903.5,1903.0,2.6276]
[1741941085405,2.816,1903.4,1903.3,1.05089]
[1741941085799,5.316,1903.4,1903.3,1.05089]
[1741941086208,1.05094,1903.3,1903.1,3.2078]
[1741941086411,1.05089,1903.3,1903.2,0.0078798]
[1741941086600,3.55089,1903.3,1903.2,0.0078798]
[1741941087600,3.63629654,1903.3,1903.2,1.0588198]
[1741941087806,3.55089,1903.3,1903.2,0.0078798]
[1741941088008,3.55089,1903.3,1903.2,1.0588198]
[1741941088198,4.834,1903.3,1903.2,1.0588198]
[1741941088397,4.833,1903.3,1903.2,1.0588198]
[1741941088599,5.2063,1903.3,1903.2,1.0588198]
[1741941090703,5.2063,1903.3,1903.2,2.4321198]
[1741941091209,5.2063,1903.3,1903.2,1.0588198]
[1741941091404,5.2023,1903.3,1903.2,1.0588198]
[1741941091599,5.2023,1903.3,1903.2,2.4321198]
[1741941091795,6.25319,1903.3,1903.2,1.0588198]
[1741941092204,5.2023,1903.3,1903.2,1.0588198]
[1741941092506,6.25319,1903.3,1903.2,1.0588198]
[1741941093107,6.25319,1903.3,1903.2,0.0078798]
[1741941093305,6.33864322,1903.3,1903.2,0.0078798]
[1741941094114,6.25319,1903.3,1903.2,0.0078798]
[1741941094305,6.33863591,1903.3,1903.2,1.0588198]
[1741941094504,6.25319,1903.3,1903.2,0.0078798]
[1741941095610,6.25319,1903.3,1903.2,1.0588198]
[1741941096007,6.25319,1903.3,1903.2,0.0078798]
[1741941096407,6.25319,1903.3,1903.2,2.4520198]
[1741941096613,3.75319,1903.3,1903.2,1.4010798]
[1741941096813,3.75319,1903.3,1903.2,2.4520198]
[1741941098309,3.75319,1903.3,1903.2,1.4010798]
[1741941098507,3.75329,1903.3,1903.2,1.4010798]
[1741941098907,3.75329,1903.3,1903.2,2.4521298]
[1741941099709,6.25329,1903.3,1903.2,1.4010798]
[1741941100011,6.33874682,1903.3,1903.2,1.4010798]
[1741941100413,6.33874682,1903.3,1903.2,0.0078798]
[1741941101409,5.28775682,1903.3,1903.0,1.3361]
[1741941101716,1.05127,1902.8,1902.7,5.14425001]
[1741941101917,3.38427,1902.8,1902.7,1.71272]
[1741941102306,3.38427,1902.8,1902.7,0.6614]
[1741941102521,1.05137,1902.7,1902.5,4.2592]
[1741941102813,1.05137,1902.7,1902.6,0.0078798]
[1741941102814,1.05132,1902.7,1902.6,0.0078798]
[1741941103016,1.05132,1902.7,1902.6,1.3735798]
[1741941103212,3.55132,1902.7,1902.6,0.0078798]
[1741941103517,3.55132,1902.7,1902.3,3.2078]
[1741941103518,1.05149,1902.4,1902.3,3.2078]
[1741941103817,1.05158,1902.3,1902.1,2.42973]
[1741941104016,2.333,1902.4,1902.1,2.42973]
[1741941104213,1.42514,1902.3,1902.2,1.3657]
[1741941104715,1.51063208,1902.3,1902.2,1.3657]
[1741941104913,3.92514,1902.3,1902.2,1.3657]
[1741941105314,1.51064008,1902.3,1902.2,1.3657]
[1741941105615,6.16690008,1902.3,1902.1,0.0078798]
[1741941105819,2.62914,1902.1,1901.5,3.2078]
[1741941106014,1.05193,1901.6,1901.5,3.2078]
[1741941106212,4.92451319,1901.6,1901.1,0.71]
[1741941106427,0.3736,1901.5,1901.3,1.05209]
[1741941106617,1.05211,1901.3,1901.1,0.71]
[1741941106924,2.34,1901.3,1901.1,0.71]
[1741941107126,2.34,1901.3,1901.2,1.05215]
[1741941109017,2.34,1901.3,1901.2,2.36805]
[1741941110120,3.3921,1901.3,1901.2,1.3159]
[1741941110425,4.8292,1901.3,1901.2,1.3159]
[1741941110622,2.34,1901.3,1901.2,2.36805]
[1741941111318,2.34,1901.3,1901.2,1.3159]
[1741941111514,3.3921,1901.3,1901.2,1.3159]
[1741941112026,1.05221,1901.1,1901.0,1e-08]
[1741941112417,3.55221,1901.1,1901.0,1e-08]
[1741941112618,2.34,1901.3,1901.0,1.05221001]
[1741941112922,2.34,1901.3,1901.1,1.3111]
[1741941112923,1.05215,1901.2,1901.1,1.3111]
[1741941113114,2.47365,1901.2,1901.1,1.3111]
[1741941114016,1.05215,1901.2,1901.1,1.3111]
[1741941114220,3.7594,1901.3,1901.1,1.3111]
[1741941114421,4.81151,1901.3,1901.1,2.36331]
[1741941114821,4.81151,1901.3,1901.2,1.4298]
[1741941115426,4.89701994,1901.3,1901.2,1.4298]
[1741941115725,8.01931,1901.3,1901.2,1.4298]
[1741941115917,8.10481647,1901.3,1901.2,1.4298]
[1741941116122,8.01931,1901.3,1901.2,1.4298]
[1741941116323,8.10481696,1901.3,1901.2,1.4298]
[1741941117722,4.89701696,1901.3,1901.2,1.4298]
[1741941117927,4.81151,1901.3,1901.2,1.4298]
[1741941118129,2.34,1901.3,1901.2,2.1129]
[1741941118327,3.3911,1901.3,1901.2,2.1129]
[1741941118833,3.47661181,1901.3,1901.2,2.1129]
[1741941119029,3.3911,1901.3,1901.2,2.1129]
[1741941120937,2.339,1901.3,1901.2,2.1129]
[1741941121129,2.339,1901.3,1901.2,3.16505]
[1741941121632,0.0078798,1901.4,1901.2,2.1129]
[1741941121833,0.0078798,1901.4,1901.3,1.0521]
[1741941122339,27.86964,1901.8,1901.7,1.05188]
[1741941122631,6.60162,1901.8,1901.7,1.05187]
[1741941122834,2.342,1901.8,1901.4,7.8604]
[1741941123035,2.343,1901.9,1901.8,1.05182]
[1741941123235,2.343,1901.9,1901.8,3.07432]
[1741941123434,0.0078798,1902.0,1901.9,1.05176]
[1741941123833,2.345,1902.2,1901.9,6.63933001]
[1741941124039,2.345,1902.2,1902.1,1.05165]
[1741941124445,2.346,1902.4,1902.1,3.2078]
[1741941124644,2.346,1902.4,1902.3,1.05149]
[1741941126041,3.2078,1903.5,1902.4,2.6287]
[1741941126242,0.08555723,1903.4,1903.3,1.05099]
[1741941126447,3.2078,1903.5,1903.2,3.2078]
[1741941126647,1.05096,1903.4,1903.2,3.2078]
[1741941127458,5.6034898,1903.5,1903.2,4.25879]
[1741941127647,2.35,1903.4,1903.3,1.05097]
[1741941127953,3.40095,1903.4,1903.2,3.2078]
[1741941128149,2.35,1903.4,1903.2,3.2078]
[1741941128547,2.35,1903.4,1903.2,4.25883]
[1741941128748,2.35,1903.4,1903.2,3.2078]
[1741941128947,3.40096,1903.4,1903.2,3.2078]
[1741941129253,2.35,1903.4,1903.2,4.25885]
[1741941129557,2.347,1903.4,1903.2,4.25883]
[1741941129747,3.39794,1903.4,1903.2,4.25883]
[1741941130256,2.346,1903.4,1903.2,4.25882]
[1741941130447,5.5538,1903.4,1903.1,0.0078798]
[1741941130648,1.05102,1903.3,1903.1,0.0078798]
[1741941131554,1.05105,1903.2,1903.1,0.0078798]
[1741941131856,2.45075,1903.2,1903.1,0.0078798]
[1741941132055,2.53630473,1903.2,1903.1,0.0078798]
[1741941132356,2.346,1903.4,1903.1,0.0078798]
[1741941132554,4.25882,1903.3,1903.1,0.0078798]
[1741941132857,1.05105,1903.2,1903.1,0.0078798]
[1741941133348,2.346,1903.4,1903.1,0.0078798]
[1741941133550,3.39697,1903.4,1903.2,1.05104]
[1741941133748,2.346,1903.3,1903.2,1.05104]
[1741941135763,2.346,1903.3,1903.2,5.68324]
[1741941135954,2.346,1903.3,1903.2,4.6322]
[1741941136546,3.39699,1903.3,1903.2,4.6322]
[1741941137358,3.39699,1903.3,1903.2,1.4244]
[1741941138258,2.346,1903.3,1903.2,1.4244]
[1741941138458,2.346,1903.3,1903.2,2.47545]
[1741941139062,2.346,1903.3,1903.2,1.4244]
[1741941139560,2.346,1903.3,1903.2,2.47545]
[1741941140153,2.346,1903.3,1903.2,1.4244]
[1741941140358,3.39699,1903.3,1903.2,1.4244]
[1741941141362,2.346,1903.3,1903.2,1.4244]
[1741941141662,3.39699,1903.3,1903.2,2.47545]
[1741941142360,3.39699,1903.3,1903.2,1.4244]
[1741941142557,2.346,1903.3,1903.2,2.47545]
[1741941142759,3.39699,1903.3,1903.2,1.4244]
[1741941143056,1.05105,1903.2,1903.1,0.0078798]
[1741941143250,2.45235,1903.2,1903.1,0.0078798]
[1741941143458,1.05138,1902.6,1902.5,0.6911]
[1741941143758,2.336,1902.6,1902.2,3.2078]
[1741941143953,2.336,1902.6,1902.2,1.05158]
[1741941144152,2.336,1902.6,1902.1,2.4213]
[1741941144360,3.29339668,1902.5,1902.1,2.4213]
[1741941144666,1.05159,1902.3,1902.2,0.0078798]
[1741941144859,3.39059,1902.3,1902.2,1.3422798]
[1741941145056,3.39059,1902.3,1902.2,2.3938798]
[1741941145252,3.39059,1902.3,1902.2,1.3422798]
[1741941146656,6.6839927,1902.3,1902.2,0.0078798]
[1741941146858,1.05165,1902.1,1902.0,3.2078]
[1741941147053,1.05171,1902.0,1901.9,1.3407]
[1741941147258,3.684,1902.0,1901.7,3.2078]
[1741941147558,1.05182,1901.8,1901.7,1.3407]
[1741941147867,3.684,1902.0,1901.7,1.3407]
[1741941148066,1.05182,1901.8,1901.7,1.3407]
[1741941148261,1.05187,1901.7,1901.6,0.0078798]
[1741941148452,4.73587,1901.7,1901.6,0.0078798]
[1741941149269,7.32143547,1901.7,1901.6,1e-08]
[1741941149565,7.32143547,1901.7,1901.2,1.3407]
[1741941149566,1.0521,1901.3,1901.2,1.3407]
[1741941149765,1.05226,1901.0,1900.9,3.2078]
[1741941150067,3.40126,1901.0,1900.9,4.5118]
[1741941151162,3.40126,1901.0,1900.8,0.00530369]
[1741941151163,1.05232,1900.9,1900.8,0.00530369]
[1741941151369,2.43872,1900.9,1900.8,0.00530369]
[1741941152064,2.349,1901.0,1900.8,0.00530369]
[1741941152259,1.05232,1900.9,1900.8,0.00530369]
[1741941153166,2.349,1901.0,1900.8,0.00530369]
[1741941153367,1.05232,1900.9,1900.8,0.00530369]
[1741941153761,1.05254,1900.5,1900.4,4.6324]
[1741941153965,3.40554,1900.5,1900.4,4.6324]
[1741941154170,2.353,1900.5,1900.4,4.6324]
[1741941154368,2.353,1900.5,1900.4,5.68499]
[1741941154765,2.353,1900.5,1900.4,4.6324]
[1741941155466,3.40554,1900.5,1900.4,4.6324]
[1741941155667,2.353,1900.5,1900.4,4.6324]
[1741941155874,3.40554,1900.5,1900.4,4.6324]
[1741941160475,6.61334,1900.5,1900.4,1.4246]
[1741941160863,6.69892446,1900.5,1900.4,1.4246]
[1741941161065,6.61334,1900.5,1900.4,1.4246]
[1741941161261,5.5608,1900.5,1900.0,6.63933001]
[1741941161461,5.5608,1900.5,1900.0,3.2078]
[1741941161462,1.05276,1900.1,1900.0,3.2078]
[1741941161666,3.40076,1900.1,1900.0,3.2078]
[1741941161867,1.05287,1899.9,1899.8,3.867]
[1741941162568,1.05287,1899.9,1899.8,5.2385]
[1741941163677,1.05287,1899.9,1899.8,4.5793]
[1741941164778,2.63219,1899.9,1899.3,3.2078]
[1741941165074,3.40195,1899.8,1899.6,1.3715]
[1741941165268,1.05298,1899.7,1899.6,2.42451]
[1741941165468,1.05298,1899.7,1899.6,1.3715]
[1741941166471,2.43748,1899.7,1899.6,1.3715]
[1741941166878,9.14945,1899.7,1898.8,3.2078]
[1741941167065,1.0534,1899.0,1898.9,1.3851]
[1741941167377,3.4054,1899.0,1898.9,1.3851]
[1741941167776,2.352,1899.0,1898.9,2.43853]
[1741941167974,3.40537,1899.0,1898.9,1.3851]
[1741941168572,2.352,1899.0,1898.9,2.43853]
[1741941168876,3.40537,1899.0,1898.9,1.3851]
[1741941169869,3.40537,1899.0,1898.9,2.43853]
[1741941170072,2.352,1899.0,1898.9,1.3851]
[1741941170272,2.352,1899.0,1898.9,2.43853]
[1741941170873,3.2078,1899.5,1898.9,1.3851]
[1741941171078,2.366,1899.4,1899.1,1.05328]
[1741941171380,1.0532,1899.3,1899.2,1.3623]
[1741941172282,3.2078,1899.7,1899.3,1.0532]
[1741941172576,2.365,1899.6,1899.4,1.3623]
[1741941172976,2.364,1899.5,1899.4,2.4154]
[1741941173376,2.367,1899.5,1899.4,1.3623]
[1741941173576,2.367,1899.5,1899.4,2.41545]
[1741941174178,3.2078,1899.9,1899.4,1.3623]
[1741941174377,2.366,1899.8,1899.7,1.05298]
[1741941174780,3.2078,1899.9,1899.4,7.20296]
[1741941175074,3.41796,1899.8,1899.6,2.47701]
[1741941175279,3.41796,1899.8,1899.7,1.424]
[1741941175483,2.365,1899.8,1899.7,1.424]
[1741941175683,2.365,1899.8,1899.7,2.47698]
[1741941176085,0.0078798,1900.0,1899.7,1.424]
[1741941176277,2.363,1899.9,1899.8,1.05293]
[1741941176977,2.363,1899.9,1899.7,4.85553001]
[1741941177174,2.363,1899.9,1899.8,1.05293]
[1741941177774,2.363,1899.9,1899.8,1.72553]
[1741941178386,3.41587,1899.9,1899.8,0.6726]
[1741941178988,0.0078798,1900.0,1899.8,0.6726]
[1741941179183,2.3758798,1900.0,1899.9,5.64777]
[1741941179385,2.3758798,1900.0,1899.9,6.32197]
[1741941179585,3.4286998,1900.0,1899.9,5.2691]
[1741941179988,2.3758798,1900.0,1899.9,6.32197]
[1741941180380,0.0078798,1900.0,1899.9,6.32197]
[1741941180689,2.3778798,1900.0,1899.9,6.32197]
[1741941181090,3.4306998,1900.0,1899.9,5.2691]
[1741941181385,2.3778798,1900.0,1899.9,6.32197]
[1741941181794,0.0078798,1900.0,1899.9,6.32197]
[1741941182291,1.0606998,1900.0,1899.9,5.2691]
[1741941182481,0.0078798,1900.0,1899.9,5.2691]
[1741941182680,0.0078798,1900.0,1899.9,6.32197]
[1741941183682,1.0606998,1900.0,1899.9,2.0613]
[1741941183886,2.4728998,1900.0,1899.9,2.0613]
[1741941184081,2.4728998,1900.0,1899.9,1.3871]
[1741941186694,0.0078798,1900.0,1899.9,1.3871]
[1741941186887,0.0078798,1900.0,1899.9,2.43997]
[1741941187088,0.0078798,1900.0,1899.9,5.64777]
[1741941188785,1.0606998,1900.0,1899.9,4.5949]
[1741941188985,1.0606998,1900.0,1899.9,1.3871]
[1741941191287,1.0606998,1900.0,1899.9,2.43997]
[1741941191489,1.0606998,1900.0,1899.9,1.3871]
[1741941192796,2.4951998,1900.0,1899.9,1.3871]
[1741941193191,1.4423798,1900.0,1899.7,3.2078]
[1741941193384,1.05293,1899.8,1899.7,3.2078]
[1741941193799,1.05298,1899.7,1899.6,1.4433]
[1741941194185,2.48748,1899.7,1899.6,1.4433]
[1741941196992,1.4345,1899.7,1899.4,5.17595001]
[1741941197293,3.40804,1899.6,1899.5,1.3855]
[1741941198603,1.05315,1899.4,1899.3,4.26098]
[1741941198804,1.4302,1899.5,1899.2,0.6785]
[1741941198992,1.05326,1899.2,1899.1,1.74347]
[1741941199198,3.40926,1899.2,1899.1,1.74352]
[1741941199907,1.05337,1899.0,1898.9,4.13153001]
[1741941200097,1.05337,1899.0,1898.9,1.75343]
[1741941200291,1.05337,1899.0,1898.9,4.96123]
[1741941200993,2.48355,1899.1,1898.9,3.9078]
[1741941201198,2.48355,1899.1,1899.0,1.05337]
[1741941201401,2.48355,1899.1,1899.0,1.4333]
[1741941202408,2.48355,1899.1,1899.0,2.48667]
[1741941202713,2.48355,1899.1,1899.0,1.4333]
[1741941203009,1.05335,1899.1,1899.0,1.4333]
[1741941204707,2.35495,1899.1,1899.0,1.4333]
[1741941206403,1.38717277,1899.1,1898.7,4.5618]
[1741941206603,1.05343,1898.9,1898.8,1.39]
[1741941206802,3.40143,1898.9,1898.8,1.39]
[1741941207005,3.40143,1898.9,1898.6,1.05354]
[1741941207006,12.07661915,1898.9,1898.1,5.84242]
[1741941207200,1.05359,1898.6,1898.5,1.39]
[1741941207404,3.50214915,1898.6,1898.5,1.39]
[1741941207599,4.81514915,1898.6,1898.5,1.39]
[1741941208210,5.65635915,1898.6,1898.5,1.39]
[1741941208509,3.41659,1898.6,1898.5,1.39]
[1741941209309,1.313,1898.8,1898.5,1.39]
[1741941209506,1.97160348,1899.0,1898.7,1.05354]
[1741941209706,3.50003213,1898.9,1898.8,1.3688]
[1741941209907,3.41447,1898.9,1898.8,1.3688]
[1741941210814,3.41443,1898.9,1898.8,1.3688]
[1741941212113,4.72113,1898.9,1898.8,1.3688]
[1741941212509,4.80670508,1898.9,1898.8,1.3688]
[1741941213015,3.75327508,1898.9,1898.6,0.6878]
[1741941213205,1.05365,1898.5,1898.4,0.6881]
[1741941213405,3.41565,1898.5,1898.4,0.6881]
[1741941213811,3.41565,1898.5,1898.4,1.7418]
[1741941214013,3.41565,1898.5,1898.4,0.6881]
[1741941214409,3.41565,1898.5,1898.4,2.0977]
[1741941215009,3.50120642,1898.5,1898.4,2.0977]
[1741941215803,3.50120642,1898.5,1898.4,1.4096]
[1741941218005,3.50122433,1898.5,1898.4,1.4096]
[1741941218708,6.7090332,1898.5,1898.4,1.4096]
[1741941218909,1.05376,1898.3,1898.2,0.6719]
[1741941219513,1.05381,1898.2,1898.1,0.6873]
[1741941219712,6.62361,1898.2,1898.1,0.6873]
[1741941220012,6.70921336,1898.2,1898.1,0.6873]
[1741941220218,1.05387,1898.1,1898.0,1.3233]
[1741941220515,2.50737295,1898.1,1898.0,1.3233]
[1741941221219,2.362,1898.2,1898.0,1.3233]
[1741941221419,3.41583,1898.2,1898.1,0.656]
[1741941222016,3.41279,1898.3,1898.2,1.0538]
[1741941222214,3.41279,1898.3,1898.2,2.3771]
[1741941222518,2.359,1898.3,1898.2,2.3771]
[1741941222919,1.05376,1898.3,1898.2,2.3771]
[1741941223320,5.5708,1898.4,1898.2,2.3771]
[1741941223520,3.41675,1898.4,1898.3,1.05376]
[1741941223715,3.41675,1898.4,1898.3,0.6596]
[1741941224517,0.0078798,1899.0,1898.3,3.8674]
[1741941224723,1.05361,1898.6,1898.4,2.46407]
[1741941225117,1.05365,1898.5,1898.4,1.4104]
[1741941226020,1.05365,1898.5,1898.4,2.4641]
[1741941226220,1.05365,1898.5,1898.4,1.4104]
[1741941226424,2.378,1898.6,1898.4,1.4104]
[1741941226624,3.43164,1898.6,1898.4,2.46409]
[1741941226823,1.05365,1898.5,1898.4,2.46409]
[1741941227121,2.378,1898.6,1898.4,2.46409]
[1741941227324,3.43163,1898.6,1898.4,2.46409]
[1741941227526,1.05365,1898.5,1898.4,1.4104]
[1741941227711,1.0537,1898.4,1898.3,3.8674]
[1741941228222,1.0537,1898.4,1898.3,0.6596]
[1741941229413,1.05381,1898.2,1898.1,0.656]
[1741941229627,3.42981,1898.2,1898.1,1.70987]
[1741941229922,3.42981,1898.2,1898.1,0.656]
[1741941230718,3.42981,1898.2,1898.1,1.70987]
[1741941230924,2.376,1898.2,1898.1,1.70987]
[1741941231521,2.376,1898.2,1898.1,0.656]
[1741941231827,3.42981,1898.2,1898.1,0.656]
[1741941232417,3.42981,1898.2,1898.1,1.70987]
[1741941232624,1.05368,1898.5,1898.1,0.656]
[1741941232815,3.2078,1898.6,1898.5,1.05365]
[1741941233016,5.5858,1898.8,1898.3,3.2078]
[1741941233223,1.05356,1898.7,1898.5,1.05361]
[1741941233427,1.05356,1898.7,1898.6,0.687]
[1741941233628,3.43156,1898.7,1898.6,0.687]
[1741941234624,1.05365,1898.5,1898.4,0.6829]
[1741941234825,1.05365,1898.5,1898.4,1.3539]
[1741941235923,1.05377,1898.3,1898.1,3.2078]
[1741941236120,2.374,1898.4,1898.2,1.05381]
[1741941236320,1.05376,1898.3,1898.2,1.05381]
[1741941236718,1.05378,1898.3,1898.1,3.2078]
[1741941236920,2.374,1898.4,1898.1,3.2078]
[1741941237120,2.374,1898.4,1898.3,1.05376]
[1741941237828,2.377,1898.4,1898.3,1.05371]
[1741941238227,3.4307,1898.4,1898.3,1.05371]
[1741941238626,2.377,1898.4,1898.1,3.2078]
[1741941238827,1.05381,1898.2,1898.1,3.2078]
[1741941239530,3.0888,1898.4,1898.1,4.26165]